{"text_format":"1","workbook":"xlsx","n_sheets":11,"sheets":["HOME","Applicant Info","Checklist","Terms","Multi-Facility","Interior Lighting","Exterior Lighting","HVAC","Food Service","Custom","NC Whole Bldg"],"not_rendered":{"charts":0,"images":50,"macros":1,"external_links":4,"defined_names":193,"comments":2,"pivot_tables":0},"unopened":[],"bounds":{"document_bytes":16777216,"sheet_cells":100000,"rows_first":2000,"rows_last":500,"rows_between":2000,"halvings":0,"cell_chars":16384,"cell_head_chars":4096},"cells_cut":0,"cells_raw":0,"read":"whole","date_system":"1900"}

{"sheet":"HOME","index":0,"n_rows":43,"n_cols":8,"rows_kept":43,"cut":false,"hidden":false,"merged":[[2,0,13,8],[0,0,1,1],[0,3,0,8],[1,3,1,8],[19,0,19,4],[16,1,18,2],[16,4,18,5],[16,7,18,8],[22,5,25,8],[34,5,34,8],[32,5,32,8],[21,1,23,3],[21,5,21,8],[28,9,28,12],[26,1,29,3],[26,5,26,8],[30,1,33,3],[34,0,37,4],[27,5,27,8],[33,5,33,8],[41,0,44,2],[41,3,44,4],[42,5,42,7],[41,5,41,7],[38,0,39,8]]}
[null,null,null,"2020 v2 New Construction Application"]
[null,null,null,"PNM Business Energy Efficiency Program"]
[]
[]
[]
[]
[]
[]
[]
[]
[]
[]
[]
[]
[]
["Why improve energy efficiency?"]
[null,"Directly improves profitability by cutting operating costs",null,null,"Distinguishes your business as an energy efficiency steward in the community",null,null,"Qualifies your business for rebates that can cover portions of the upgrade cost"]
[]
[]
["Application Process",null,null,null,null,"Click on a quick link below:"]
[]
["1.","Submit a Pre-Notification Application to reserve funding (if required).",null,null,null,"Administrative"]
[]
[]
["2.","Install the qualified technology."]
[]
["3.","Complete, sign and submit Final Application with all required documentation within 6 months of project completion."]
[null,null,null,null,null,"Worksheets"]
[]
[]
["4.","The incentive check will be sent 4 to 6 weeks after approval of the Final Application."]
[]
[]
[]
[]
[]
[]
[]
["Contact Our PNM Business Energy Efficiency Team"]
[]
[]
["320 Gold Avenue SW, Ste 500 Albuquerque, NM 87102",null,null,"(505) 938-9400 Main    (505) 938-9401 Fax",null,"energyefficiency@pnm.com"]
[null,null,null,null,null,"www.pnmenergyefficiency.com"]

{"sheet":"Applicant Info","index":1,"n_rows":71,"n_cols":17,"rows_kept":71,"cut":false,"hidden":false,"merged":[[0,9,0,10],[0,3,0,8],[32,6,32,7],[26,0,26,3],[47,5,47,8],[47,9,47,10],[13,6,13,10],[30,4,30,10],[0,0,0,1],[10,0,10,5],[21,0,21,3],[5,2,5,3],[20,6,20,7],[20,8,20,10],[19,0,19,5],[19,6,19,10],[45,0,45,10],[30,0,30,3],[31,0,31,3],[3,0,3,5],[3,6,3,8],[26,8,26,10],[23,6,23,7],[25,0,25,3],[25,4,25,5],[25,6,25,7],[24,4,24,10],[16,6,16,10],[5,7,5,8],[7,7,7,8],[6,7,6,8],[28,4,28,10],[39,0,39,5],[39,6,39,10],[28,0,28,3],[17,0,17,5],[17,6,17,10],[18,6,18,10],[18,0,18,5],[21,4,21,10],[20,3,20,5],[9,0,9,10],[16,0,16,5],[14,0,14,5],[15,0,15,5],[10,6,10,8],[54,0,54,10],[52,0,52,10],[53,0,53,10],[29,6,29,8],[32,0,32,3],[32,4,32,5],[29,9,29,10],[27,0,27,10],[29,4,29,5],[29,0,29,3],[37,4,37,10],[37,0,37,3],[40,3,40,5],[33,0,33,10],[42,6,42,7],[38,0,38,5],[40,6,40,7],[31,4,31,10],[35,7,36,10],[50,0,50,10],[51,0,51,10],[49,0,49,10],[47,0,47,4],[42,4,42,5],[22,4,22,10],[22,0,22,3],[23,0,23,3],[24,0,24,3],[23,4,23,5],[26,4,26,5],[38,6,38,10],[46,9,46,10],[46,0,46,4],[46,5,46,8],[44,4,44,5],[43,0,43,3],[43,4,43,10],[41,0,41,3],[42,0,42,3],[41,4,41,10],[44,8,44,10],[40,8,40,10],[59,0,59,4],[55,7,55,10],[56,7,56,10],[57,7,57,10],[59,7,59,10],[64,1,64,4],[60,7,60,10],[60,0,60,4],[56,5,56,6],[58,7,58,10],[58,0,58,4],[56,0,56,4],[55,0,55,4],[57,0,57,4]]}
[null,null,null,"APPLICANT INFORMATION",null,null,null,null,null,"For office use only:"]
[null,null,null,null,null,null,null,null,null,"Application #","Revision #"]
[]
["Application Type:",null,null,null,null,null,"Check ONE box below:*"]
[]
[null,null,"New Construction",null,null,null,null,"Pre-Notification",null,"Date",null,null,null,null,null,{"$f":"IF(G6>0,\"Yes\",)","v":0}]
[null,null,null,null,null,null,null,"or",null,null,null,null,null,null,"New pre notification checkbox flag:"]
[null,null,null,null,null,null,null,"Final Application",null,"Date",null,null,null,null,false]
[]
["Customer Information*",null,null,null,null,null,null,null,null,null,null,null,null,null,"Multifacility checkbox flag:"]
["PNM Account Number where measures installed ",null,null,null,null,null,null,null,null,null,null,null,null,null,false]
[]
[null,null,"This Application represents multiple accounts / premises",null,null,null,"1. Enter number of Accounts / Premises ------->",null,null,null,"_________",null,null,{"$f":"is","v":{"$error":"#NAME?"}}]
[null,null,null,null,null,null,"2. If yes: Complete Multi-Facility Worksheet -------> CLICK HERE"]
["Building Type*"]
[null,null,null,null,null,null,null,null,null,null,null,null,"Business Type",null,"Tax Status",null,"State"]
["Name of Company*",null,null,null,null,null,"Name Exactly as it Appears on Your Utility Bill*",null,null,null,null,null,"Assembly",null,"Corporation (Inc, PC, etc.)",null,"AL"]
[null,null,null,null,null,null,null,null,null,null,null,null,"College/University",null,"Government Agency",null,"AK"]
["Name of Contact Person*",null,null,null,null,null,"Title*",null,null,null,null,null,"Grocery",null,"Individual",null,"AZ"]
[null,null,null,null,null,null,null,null,null,null,null,null,"Heavy Industry",null,"Partnership",null,"AR"]
["Telephone #*",null,null,null,null,null,"Fax #",null,null,null,null,null,"Hotel/Motel Common Areas",null,"Exempt",null,"CA"]
["Email Address*",null,null,null,null,null,null,null,null,null,null,null,"Light Industry",null,null,null,"CO"]
["Address Where Measures Installed*",null,null,null,null,null,null,null,null,null,null,null,"Medical",null,null,null,"CT"]
["City Where Measures Installed*",null,null,null,null,null,"State*",null,{"$f":"IF(E24=\"\",\"\",\"NM\")","v":""},"Zip*",null,null,"Office",null,null,null,"DE"]
["Mailing Address*",null,null,null,null,null,null,null,null,null,null,null,"Restaurant",null,null,null,"FL"]
["City*",null,null,null,null,null,"State*",null,null,"Zip*",null,null,"Retail/Service",null,null,null,"GA"]
["Taxpayer ID Number (SSN/FEIN)*",null,null,null,null,null,"Tax Status*",null,null,null,null,null,"K-12 School",null,null,null,"HI"]
["Contractor Information",null,null,null,null,null,null,null,null,null,null,null,"Warehouse",null,null,null,"ID"]
["Contracting Company*",null,null,null,null,null,null,null,null,null,null,null,"Dwelling Unit",null,null,null,"IL"]
["Contractor Name*",null,null,null,null,null,"Contractor Phone Number*",null,null,null,null,null,"Miscellaneous",null,null,null,"IN"]
["Contractor Email Address*",null,null,null,null,null,null,null,null,null,null,null,null,null,null,null,"IA"]
["Contractor Mailing Address*",null,null,null,null,null,null,null,null,null,null,null,null,null,null,null,"KS"]
["City*",null,null,null,null,null,"State*",null,null,"Zip*",null,null,null,null,null,null,"KY"]
["Third Party Payment Release",null,null,null,null,null,null,null,null,null,null,null,null,null,null,null,"LA"]
[null,null,null,null,null,null,null,null,null,null,null,null,null,null,null,null,"ME"]
[null,null,"I request that the incentive check be sent to the third party below",null,null,null,null,"Check here if the third party payee is the contractor (Contractor must be a PNM Authorized Contractor to be eligible for third party payment)",null,null,null,null,null,null,null,null,"MD"]
[null,null,null,null,null,null,null,null,null,null,null,null,null,null,null,null,"MA"]
["Name of Third Party*",null,null,null,null,null,null,null,null,null,null,null,null,null,null,null,"MI"]
["Name of Third Party Contact Person*",null,null,null,null,null,"Title*",null,null,null,null,null,null,null,null,null,"MN"]
[null,null,null,null,null,null,null,null,null,null,null,null,null,null,null,null,"MS"]
["Third Party Phone #*",null,null,null,null,null,"Fax #",null,null,null,null,null,null,null,null,null,"MO"]
["Third Party Mailing Address*",null,null,null,null,null,null,null,null,null,null,null,null,null,null,null,"MT"]
["Third Party City*",null,null,null,null,null,"State*",null,null,"Zip*",null,null,null,null,null,null,"NE"]
["Third Party Email Address*",null,null,null,null,null,null,null,null,null,null,null,null,null,null,null,"NV"]
["Third Party Taxpayer ID # (SSN/FEIN)*",null,null,null,null,null,"Tax Status*",null,null,null,null,null,null,null,null,null,"NH"]
["Incentive Summary",null,null,null,null,null,null,null,null,null,null,null,null,null,null,null,"NJ"]
["Total Incentive Requested",null,null,null,null,"Total Project Cost  PRE-TAX * REQUIRED *",null,null,null,{"$f":"IF(O8=TRUE, \"Estimated Project Completion Date\", \"Project Completion Date\")","v":"Project Completion Date"},null,null,null,null,null,null,"NM"]
[{"$f":"MIN(F65, F48*0.5,400000)","v":0},null,null,null,null,null,null,null,null,null,null,null,null,null,null,null,"NY"]
[null,null,null,null,null,null,null,null,null,null,null,null,null,null,null,null,"NC"]
["Incentive requested + 20% Bonus (valid 7/1/2020-12/31/2020 ONLY) \n*Any bonus offers are a limited time only, while funds are available and can be terminated at any time at the Program's discretion.",null,null,null,null,null,null,null,null,null,null,null,null,null,null,null,"ND"]
[{"$f":"MIN($F$65*1.2,$F$48*0.5,400000)","v":0},null,null,null,null,null,null,null,null,null,null,null,null,null,null,null,"OH"]
["AGREEMENT",null,null,null,null,null,null,null,null,null,null,null,null,null,null,null,"OK"]
["I understand that in the event funds are reserved based on a pre-notification, the payment of incentives will be based upon the Final Application and program terms and conditions, and that the PNM Business Energy Efficiency program is subject to change or cancellation at any time and without notice. PNM is not responsible for any lost, late, stolen, ineligible, illegible, misdirected or postage-due mail. All completed submissions become the property of PNM and will not be returned. PNM makes no guarantees about the availability of products or rebate forms. By participating in the PNM Business Energy Efficiency program, customers agree to waive any claims and release PNM from any liability for damages of any kind. Rebates are funded by a charge on PNM electric customer bills.",null,null,null,null,null,null,null,null,null,null,null,null,null,null,null,"OR"]
["I have read and understand the program requirements, measure specifications, and Terms & Conditions set forth in this application and agree to abide by those requirements. Furthermore, I concur that I must meet all eligibility criteria in order to be paid under this program.",null,null,null,null,null,null,null,null,null,null,null,null,null,null,null,"PA"]
["As an eligible customer, I verify that the signature below is my own and that the information is correct. I am requesting consideration for participation under this program. By signing this agreement I attest that I understand and agree to abide by all Program terms and conditions.",null,null,null,null,null,null,null,null,null,null,null,null,null,null,null,"RI"]
["Customer Signature (PNM Customer)",null,null,null,null,null,null,"Third Party Signature",null,null,null,null,null,null,null,null,"SC"]
[null,null,null,null,null,"Please sign by hand or via DocuSign®",null,null,null,null,null,null,null,null,null,null,"SD"]
["Print Customer Name",null,null,null,null,null,null,"Print Third Party Name",null,null,null,null,null,null,null,null,"TN"]
[null,null,null,null,null,null,null,null,null,null,null,null,null,null,null,null,"TX"]
["Date",null,null,null,null,null,null,"Date",null,null,null,null,null,null,null,null,"UT"]
[null,null,null,null,null,null,null,null,null,null,null,null,null,null,null,null,"VT"]
[null,null,null,null,null,null,null,null,null,null,null,null,null,null,null,null,"VA"]
[null,null,null,null,null,null,null,null,null,null,null,null,null,null,null,null,"WA"]
[null,null,null,null,null,null,null,null,null,null,null,null,null,null,null,null,"WI"]
[null,"For Office Use Only",null,null,null,{"$f":"SUM(F66:F71)","v":0},null,null,null,null,null,null,null,null,null,null,"WV"]
[null,"HVAC",null,null,null,{"$f":"+HVAC!H59","v":0},null,null,null,null,null,null,null,null,null,null,"WY"]
[null,"Food Service Incentives",null,null,null,{"$f":"'Food Service'!J14","v":0}]
[null,"Custom Incentives",null,null,null,{"$f":"Custom!I51","v":0}]
[null,"NC Lighting Incentives",null,null,null,{"$f":"+'Interior Lighting'!H22","v":0}]
[null,"NC Exterior Lighting",null,null,null,{"$f":"'Exterior Lighting'!L25","v":0}]
[null,"NC Whole Building Incentives",null,null,null,{"$f":"+'NC Whole Bldg'!I55","v":0}]

{"sheet":"Checklist","index":2,"n_rows":73,"n_cols":5,"rows_kept":73,"cut":false,"hidden":false,"merged":[[60,0,62,9],[0,3,0,6]]}
[null,null,null,"APPLICATION CHECKLIST"]
[]
[]
[]
[]
[]
[]
[]
[]
[]
[]
[]
[]
[]
[]
[]
[]
[]
[]
[]
[]
[]
[]
[]
[]
[]
[]
[]
[]
[]
[]
[]
[]
[]
[]
[]
[]
[]
[]
[]
[]
[]
[]
[]
[]
[]
[]
[]
[]
[]
[]
[]
[]
[]
[]
[]
[]
[]
[]
[]
["APPLICATION CHECKLIST  (CONTINUED)"]
[]
[]
[]
[]
[]
[]
[]
[]
[]
[]
[]
[null,null,null,null,"https://www.ahridirectory.org/ahridirectory/pages/home.aspx"]

{"sheet":"Terms","index":3,"n_rows":1,"n_cols":1,"rows_kept":1,"cut":false,"hidden":false,"merged":[[0,0,0,16383]]}
["TERMS & CONDITIONS"]

{"sheet":"Multi-Facility","index":4,"n_rows":446,"n_cols":7,"rows_kept":446,"cut":false,"hidden":false,"merged":[[4,3,4,4],[5,1,5,2],[7,0,7,4],[0,1,0,3]]}
[null,"LIGHTING MULTIPLE FACILITY WORKSHEET"]
["Use this worksheet ONLY if installing the SAME measure in facilities with different service addresses and unique account numbers."]
["If a project encompasses multiple buildings at the same premise, this worksheet is not required."]
["For official use only","Pre-Notification Date:",{"$f":"IF(ISBLANK('Applicant Info'!$K$6),\" \",'Applicant Info'!$K$6)","v":" "},"Final Application Date:",{"$f":"IF(ISBLANK('Applicant Info'!$K$8),\" \",'Applicant Info'!$K$8)","v":" "}]
["Application #",null,"Business Name:",{"$f":"IF(ISBLANK('Applicant Info'!$A$18),\" \",'Applicant Info'!$A$18)","v":" "}]
["Prepared by:",{"$f":"IF(ISBLANK('Applicant Info'!$A$20),\" \",'Applicant Info'!$A$20)","v":" "},null,"Contact #:",{"$f":"'Applicant Info'!$D$21","v":0}]
[]
["Project Locations "]
["Service Address","Account #","Replacement Equipment Type 1","Replacement Equipment Type 2","Replacement Equipment Qty","Existing Equipment Description","Existing Equipment Qty"]
[]
[]
[]
[]
[]
[]
[]
[]
[]
[]
[]
[]
[]
[]
[]
[]
[]
[]
[]
[]
[]
[]
[]
[]
[]
["Total",null,null,null,{"$f":"SUM(E10:E34)","v":0},null,{"$f":"SUM(G10:G34)","v":0}]
[]
[]
[]
[]
[]
[]
[]
[]
[]
[]
[]
[]
[]
[]
[]
[]
[]
[]
[]
[]
[]
[]
[]
[]
[]
[]
[]
[]
[]
[]
[]
[]
[]
[]
[]
[]
[]
[]
[]
[]
[]
[]
[]
[]
[]
[]
[]
[]
[]
[]
[]
[]
[]
[]
[]
[]
[]
[]
[]
[]
[]
[]
[]
[]
[]
[]
[]
[]
[]
[]
[]
[]
[]
[]
[]
[]
[]
[]
[]
[]
[]
[]
[]
[]
[]
[]
[]
[]
[]
[]
[]
[]
[]
[]
[]
[]
[]
[]
[]
[]
[]
[]
[]
[]
[]
[]
[]
[]
[]
[]
[]
[]
[]
[]
[]
[]
[]
[]
[]
[]
[]
[]
[]
[]
[]
[]
[]
[]
[]
[]
[]
[]
[]
[]
[]
[]
[]
[]
[]
[]
[]
[]
[]
[]
[]
[]
[]
[]
[]
[]
[]
[]
[]
[]
[]
[]
[]
[]
[]
[]
[]
[]
[]
[]
["Measure Type 1"]
["Interior Lighting"]
["Exterior Lighting"]
["24/7 Lighting"]
["Plug Load Controls"]
["Custom"]
["HVAC"]
["Envelope"]
["Refrigeration"]
["Food Service Equipment"]
["Motors"]
["VSDs"]
[]
["Measure Type 1","Measure Type 2","Unit","Incentive",null,"Measure Type 1"]
["Interior Lighting","Screw-in Compact Fluorescent Lights 5-15 Watts","Lamp",1,null,"Interior Lighting"]
["Interior Lighting","Screw-in Compact Fluorescent Lights 16-26 Watts","Lamp",1,null,"Exterior Lighting"]
["Interior Lighting","Screw-in Compact Fluorescent Lights 27 Watts or higher","Lamp",2,null,"24/7 Lighting"]
["Interior Lighting","Screw-in Compact Fluorescent Lights  Inside Dwelling Units 5-15 Watts","Lamp",1,null,"HVAC"]
["Interior Lighting","Screw-in Compact Fluorescent Lights  Inside Dwelling Units 16-26 Watts","Lamp",1,null,"Envelope"]
["Interior Lighting","Screw-in Compact Fluorescent Lights  Inside Dwelling Units 27 Watts or higher","Lamp",2,null,"Refrigeration"]
["Interior Lighting","Hardwired Compact Fluorescent Fixtures 29W or Less","Fixture",20,null,"Food Service Equipment"]
["Interior Lighting","Hardwired Compact Fluorescent Fixtures 30W or Greater","Fixture",40,null,"Plug Load Controls"]
["Interior Lighting","Hardwired Compact Fluorescent Lights  Inside Dwelling Units 29W or Less","Fixture",5,null,"Motors"]
["Interior Lighting","Hardwired Compact Fluorescent Lights  Inside Dwelling Units 30W or Greater","Fixture",10,null,"VSDs"]
["Interior Lighting","Permanent Removal of Lamp from Existing Fixture 2-ft Lamp - T12 basecase","Lamp Removed",4.5]
["Interior Lighting","Permanent Removal of Lamp from Existing Fixture 3-ft Lamp - T12 basecase","Lamp Removed",6]
["Interior Lighting","Permanent Removal of Lamp from Existing Fixture 4-ft Lamp - T12 basecase","Lamp Removed",7.5]
["Interior Lighting","Permanent Removal of Lamp from Existing Fixture 8-ft Lamp - T12 basecase","Lamp Removed",15]
["Interior Lighting","Permanent Removal of Lamp from Existing Fixture 2-ft Lamp - T8 basecase","Lamp Removed",3]
["Interior Lighting","Permanent Removal of Lamp from Existing Fixture 3-ft Lamp - T8 basecase","Lamp Removed",4]
["Interior Lighting","Permanent Removal of Lamp from Existing Fixture 4-ft Lamp - T8 basecase","Lamp Removed",5]
["Interior Lighting","Permanent Removal of Lamp from Existing Fixture 8-ft Lamp - T8 basecase","Lamp Removed",10]
["Interior Lighting","High Performance (HP) T8 or Reduced Wattage (RW) 4-Foot T8 and Electronic Ballast 4-ft HP Lamp and Ballast","Lamp",6]
["Interior Lighting","High Performance (HP) T8 or Reduced Wattage (RW) 4-Foot T8 and Electronic Ballast  4-ft RW Lamp and Ballast","Lamp",6]
["Interior Lighting","High Performance (HP) T8 or Reduced Wattage (RW) 4-Foot T8 and Electronic Ballast  1 Lamp 8-ft T12 to 2 Lamp 4-ft HP T8","Lamp",6]
["Interior Lighting","High Performance (HP) T8 or Reduced Wattage (RW) 4-Foot T8 and Electronic Ballast  1 Lamp 8-ft T12 to 2 Lamp 4-ft RW T8","Lamp",6]
["Interior Lighting","Standard T8 and Electronic Ballast 2-ft Lamp and Ballast","Lamp",3]
["Interior Lighting","Standard T8 and Electronic Ballast 3-ft Lamp and Ballast","Lamp",3]
["Interior Lighting","Standard T8 and Electronic Ballast 4-ft or U-Tube and Ballast","Lamp",3]
["Interior Lighting","T12 to T5 Lamps and Ballast","Lamp",6]
["Interior Lighting","Reduced Wattage 8 Foot T8 and Electronic Ballast 8-foot T12 to RW T8 ","Lamp",6]
["Interior Lighting","Reduced Wattage (RW) 4-Foot OR 8-Foot T8 LAMP ONLY 4-ft T8 Reduced Wattage Lamp Only","Lamp",0.5]
["Interior Lighting","Reduced Wattage (RW) 4-Foot OR 8-Foot T8 LAMP ONLY 8-ft T8 Reduced Wattage Lamp Only","Lamp",0.5]
["Interior Lighting","New High Bay T8/T5 Fluorescent Fixtures with Electronic Ballast replacing HID T8/T5 (w/ electronic ballast)","Watt Reduction***",0.3]
["Interior Lighting","LED Lighting LED, T-1, or Electroluminescent Exit Signs","Sign",20]
["Interior Lighting","LED Lighting LED Lamp *NEW Higher Rebate!","Lamp",12]
["Interior Lighting","LED Lighting LED Recessed Downlight Fixture *NEW Higher Rebate!","Fixture",20]
["Interior Lighting","LED Lighting LED Open Sign","Sign",25]
["Interior Lighting","LED Lighting LED Channel Sign ≤ 2 feet Interior","Letter",8]
["Interior Lighting","LED Lighting LED Channel Sign > 2 feet Interior","Letter",16]
["Interior Lighting","High Efficiency HID Fixture Integrated Ballast Ceramic Metal Halide Lamps","Fixture",8]
["Interior Lighting","High Efficiency HID Fixture Metal Halide (Pulse Start or Ceramic) 100W or Less","Fixture",20]
["Interior Lighting","High Efficiency HID Fixture Metal Halide (Pulse Start or Ceramic) 101W - 200W","Fixture",25]
["Interior Lighting","High Efficiency HID Fixture Metal Halide (Pulse Start or Ceramic) 201W - 350W","Fixture",45]
["Interior Lighting","High Efficiency HID Fixture Metal Halide (Pulse Start or Ceramic) 351W - 400W","Fixture",65]
["Interior Lighting","Specialty Lamps Cold Cathode","Lamp",3]
["Interior Lighting","Specialty Lamps Dimmable; 3-way; Locking Base CFL","Lamp",5]
["Interior Lighting","Specialty Lamps Dimmable; 3-way; Locking Base CFL (dwelling units)","Lamp",3]
["Interior Lighting","Controls  Occupancy Sensors","Watts Controlled",0.06]
["Interior Lighting","Controls  Daylighting Sensor Controls","Watts Controlled",0.06]
["Exterior Lighting","Exterior LED Lighting LED Channel Sign ≤ 2 feet Exterior","Letter",8]
["Exterior Lighting","Exterior LED Lighting LED Channel Sign > 2 feet Exterior","Letter",16]
["Exterior Lighting","Exterior LED Lighting Bi-Level LED Parking Lot Fixture","Fixture",60]
["Exterior Lighting","Exterior LED Lighting Bi-Level LED Wall Pack Fixture","Fixture",60]
["Exterior Lighting","Exterior Specialty Lamps Cold Cathode","Lamp",3]
["Exterior Lighting","Exterior Specialty Lamps CFL - High Wattage (>40W) Screw-In , Dimmable, or 3-way","Lamp",15]
["Exterior Lighting","Outdoor Area or Street Lights Metal Halide (Pulse Start or Ceramic) 100W or Less","Fixture",20]
["Exterior Lighting","Outdoor Area or Street Lights Metal Halide (Pulse Start or Ceramic) 101W - 200W","Fixture",25]
["Exterior Lighting","Outdoor Area or Street Lights Metal Halide (Pulse Start or Ceramic) 201W - 350","Fixture",45]
["Exterior Lighting","Outdoor Area or Street Lights Metal Halide (Pulse Start or Ceramic) 351W - 400W","Fixture",65]
["Exterior Lighting","Outdoor Area or Street Lights LED or Induction replacing 175W or Less HID","Fixture",40]
["Exterior Lighting","Outdoor Area or Street Lights LED or Induction replacing 176W - 250W HID","Fixture",50]
["Exterior Lighting","Outdoor Area or Street Lights LED or Induction replacing 251W - 400W HID","Fixture",60]
["Exterior Lighting","Exterior Hardwired Compact Fluorescent Fixtures 29W or Less","Fixture",20]
["Exterior Lighting","Exterior Hardwired Compact Fluorescent Fixtures 30W or Greater","Fixture",40]
["24/7 Lighting","24/7 LED Lighting Bi-Level LED Parking Lot Fixture","Fixture",60]
["24/7 Lighting","24/7 LED Lighting Bi-Level LED Wall Pack Fixture","Fixture",60]
["24/7 Lighting","24/7 Specialty Lamps Cold Cathode","Lamp",3]
["24/7 Lighting","24/7 Specialty Lamps CFL - High Wattage (>40W) Screw-In (Exterior ONLY)","Lamp",15]
["24/7 Lighting","24/7 Specialty Lamps CFL - Dimmable, or 3-way","Lamp",15]
["24/7 Lighting","24/7 Outdoor Area or Street Lights Metal Halide (Pulse Start or Ceramic) 100W or Less","Fixture",20]
["24/7 Lighting","24/7 Outdoor Area or Street Lights Metal Halide (Pulse Start or Ceramic) 101W - 200W","Fixture",25]
["24/7 Lighting","24/7 Outdoor Area or Street Lights Metal Halide (Pulse Start or Ceramic) 201W - 350","Fixture",45]
["24/7 Lighting","24/7 Outdoor Area or Street Lights Metal Halide (Pulse Start or Ceramic) 351W - 400W","Fixture",65]
["24/7 Lighting","24/7 Outdoor Area or Street Lights LED or Induction replacing 175W or Less HID","Fixture",40]
["24/7 Lighting","24/7 Outdoor Area or Street Lights LED or Induction replacing 176W - 250W HID","Fixture",50]
["24/7 Lighting","24/7 Outdoor Area or Street Lights LED or Induction replacing 251W - 400W HID","Lamp",60]
["24/7 Lighting","24/7 Traffic and Pedestrain Signals LED traffic lights - Green 8\"","Lamp",10]
["24/7 Lighting","24/7 Traffic and Pedestrain Signals LED traffic lights - Green 12\"","Lamp",20]
["24/7 Lighting","24/7 Traffic and Pedestrain Signals LED traffic lights - Red 8\"","Lamp",10]
["24/7 Lighting","24/7 Traffic and Pedestrain Signals LED traffic lights - Red 12\"","Lamp",20]
["24/7 Lighting","24/7 Traffic and Pedestrain Signals LED traffic lights - Walk/Don't Walk or Arrow - 9\"","Lamp",5]
["24/7 Lighting","24/7 Traffic and Pedestrain Signals LED traffic lights - Walk/Don't Walk or Arrow - 12\"","Lamp",5]
["24/7 Lighting","24/7 New T8/T5 Fluorescent Fixtures with Electronic Ballast  replacing HID T8/T5 (w/ electronic ballast)","Watt Reduction***",0.3]
["24/7 Lighting","24/7 Controls Bi-Level Stairwell/Hall/Garage Fixtures w/ integrated sensors","Fixture",20]
[]
[null,null,"Unit","Incentive"]
["Envelope","Window Film","Sq. Ft. of Glazing",1.2]
[]
[null,null,"Unit","Incentive"]
["Refrigeration","Strip Curtains on Walk-ins and Freezers","Sq. Ft.",3]
["Refrigeration","Night Covers for Displays","Lin. Ft. of Case",5]
["Refrigeration","EC Motor for Reach-in Refrigerator or Freezer Cases","Motor",25]
["Refrigeration","Evaporator Fan Controller - Shade Pole Motor","Motor",40]
["Refrigeration","Anti Sweat Heater Controls","Lin. Ft. of Case",20]
["Refrigeration","LED Refrigeration Case Lighting","Door",40]
["Refrigeration","ENERGY STAR® Solid Door Freezer","Unit",100]
["Refrigeration","ENERGY STAR® Glass Door Freezer","Unit",350]
[]
[null,null,"Unit","Incentive"]
["Food Service Equipment","ENERGY STAR® Steam Cookers","Unit",400]
["Food Service Equipment","Combination Oven","Unit",800]
["Food Service Equipment","ENERGY STAR® Hot Holding Cabinet - 1/2 size","Unit",200]
["Food Service Equipment","ENERGY STAR® Hot Holding Cabinet - 3/4 size","Unit",300]
["Food Service Equipment","ENERGY STAR® Hot Holding Cabinet - Full size","Unit",400]
["Food Service Equipment","ENERGY STAR® Beverage Vending Machine","Unit",80]
["Food Service Equipment","ENERGY STAR® Commercial Vat Fryer","Unit",225]
["Food Service Equipment","ENERGY STAR® Griddle","Unit",125]
[]
[null,null,"Unit","Incentive"]
["Plug Load Controls","Beverage Vending Machine Control","Unit","Contact for offer"]
["Plug Load Controls","Refrigerated Cooler Control","Unit","Contact for offer"]
["Plug Load Controls","Snack Machine Control","Unit","Contact for offer"]
["Plug Load Controls","Plug Load Occupancy Sensors","Unit",25]
[]
[null,null,"Unit","Incentive"]
["Motors","1200 RPM -  1 HP - Open ","motor",1]
["Motors","1200 RPM -  1 HP - Open ","motor",1.5]
["Motors","1200 RPM -  1 HP - Open ","motor",2]
["Motors","1200 RPM -  1 HP - Open ","motor",3]
["Motors","1200 RPM -  1 HP - Open ","motor",4]
["Motors","1200 RPM -  1 HP - Open ","motor",9]
["Motors","1200 RPM -  1 HP - Open ","motor",10]
["Motors","1200 RPM -  1 HP - Open ","motor",11]
["Motors","1200 RPM -  1 HP - Open ","motor",12]
["Motors","1200 RPM -  1 HP - Open ","motor",15]
["Motors","1200 RPM -  1 HP - Open ","motor",17]
["Motors","1200 RPM -  1 HP - Open ","motor",20]
["Motors","1200 RPM -  1 HP - Open ","motor",24]
["Motors","1200 RPM -  1 HP - Open ","motor",25]
["Motors","1200 RPM -  1 HP - Open ","motor",30]
["Motors","1200 RPM -  1 HP - Open ","motor",40]
["Motors","1200 RPM -  1 HP - Open ","motor",50]
["Motors","1200 RPM -  1 HP - Open ","motor",60]
["Motors","1200 RPM -  1 HP - Open ","motor",75]
["Motors","1200 RPM -  1 HP - Open ","motor",1]
["Motors","1200 RPM -  1 HP - Open ","motor",1.5]
["Motors","1200 RPM -  1 HP - Open ","motor",2]
["Motors","1200 RPM -  1 HP - Open ","motor",3]
["Motors","1200 RPM -  1 HP - Open ","motor",4]
["Motors","1200 RPM -  1 HP - Open ","motor",9]
["Motors","1200 RPM -  1 HP - Open ","motor",10]
["Motors","1200 RPM -  1 HP - Open ","motor",11]
["Motors","1200 RPM -  1 HP - Open ","motor",12]
["Motors","1200 RPM -  1 HP - Open ","motor",15]
["Motors","1200 RPM -  1 HP - Open ","motor",17]
["Motors","1200 RPM -  1 HP - Open ","motor",20]
["Motors","1200 RPM -  1 HP - Open ","motor",24]
["Motors","1200 RPM -  1 HP - Open ","motor",25]
["Motors","1200 RPM -  1 HP - Open ","motor",30]
["Motors","1200 RPM -  1 HP - Open ","motor",40]
["Motors","1200 RPM -  1 HP - Open ","motor",50]
["Motors","1200 RPM -  1 HP - Open ","motor",60]
["Motors","1200 RPM -  1 HP - Open ","motor",75]
["Motors","1200 RPM -  1 HP - Open ","motor",1]
["Motors","1200 RPM -  1 HP - Open ","motor",1.5]
["Motors","1200 RPM -  1 HP - Open ","motor",2]
["Motors","1200 RPM -  1 HP - Open ","motor",3]
["Motors","1200 RPM -  1 HP - Open ","motor",4]
["Motors","1200 RPM -  1 HP - Open ","motor",9]
["Motors","1200 RPM -  1 HP - Open ","motor",10]
["Motors","1200 RPM -  1 HP - Open ","motor",11]
["Motors","1200 RPM -  1 HP - Open ","motor",12]
["Motors","1200 RPM -  1 HP - Open ","motor",15]
["Motors","1200 RPM -  1 HP - Open ","motor",17]
["Motors","1200 RPM -  1 HP - Open ","motor",20]
["Motors","1200 RPM -  1 HP - Open ","motor",24]
["Motors","1200 RPM -  1 HP - Open ","motor",25]
["Motors","1200 RPM -  1 HP - Open ","motor",30]
["Motors","1200 RPM -  1 HP - Open ","motor",40]
["Motors","1200 RPM -  1 HP - Open ","motor",50]
["Motors","1200 RPM -  1 HP - Open ","motor",60]
["Motors","1200 RPM -  1 HP - Open ","motor",75]
["Motors","1200 RPM -  1 HP - Open ","motor",1]
["Motors","1200 RPM -  1 HP - Open ","motor",1.5]
["Motors","1200 RPM -  1 HP - Open ","motor",2]
["Motors","1200 RPM -  1 HP - Open ","motor",3]
["Motors","1200 RPM -  1 HP - Open ","motor",4]
["Motors","1200 RPM -  1 HP - Open ","motor",9]
["Motors","1200 RPM -  1 HP - Open ","motor",10]
["Motors","1200 RPM -  1 HP - Open ","motor",11]
["Motors","1200 RPM -  1 HP - Open ","motor",12]
["Motors","1200 RPM -  1 HP - Open ","motor",15]
["Motors","1200 RPM -  1 HP - Open ","motor",17]
["Motors","1200 RPM -  1 HP - Open ","motor",20]
["Motors","1200 RPM -  1 HP - Open ","motor",24]
["Motors","1200 RPM -  1 HP - Open ","motor",25]
["Motors","1200 RPM -  1 HP - Open ","motor",30]
["Motors","1200 RPM -  1 HP - Open ","motor",40]
["Motors","1200 RPM -  1 HP - Open ","motor",50]
["Motors","1200 RPM -  1 HP - Open ","motor",60]
["Motors","1200 RPM -  1 HP - Open ","motor",75]
["Motors","1200 RPM -  1 HP - Open ","motor",1]
["Motors","1200 RPM -  1 HP - Open ","motor",1.5]
["Motors","1200 RPM -  1 HP - Open ","motor",2]
["Motors","1200 RPM -  1 HP - Open ","motor",3]
["Motors","1200 RPM -  1 HP - Open ","motor",4]
["Motors","1200 RPM -  1 HP - Open ","motor",9]
["Motors","1200 RPM -  1 HP - Open ","motor",10]
["Motors","1200 RPM -  1 HP - Open ","motor",11]
["Motors","1200 RPM -  1 HP - Open ","motor",12]
["Motors","1200 RPM -  1 HP - Open ","motor",15]
["Motors","1200 RPM -  1 HP - Open ","motor",17]
["Motors","1200 RPM -  1 HP - Open ","motor",20]
["Motors","1200 RPM -  1 HP - Open ","motor",24]
["Motors","1200 RPM -  1 HP - Open ","motor",25]
["Motors","1200 RPM -  1 HP - Open ","motor",30]
["Motors","1200 RPM -  1 HP - Open ","motor",40]
["Motors","1200 RPM -  1 HP - Open ","motor",50]
["Motors","1200 RPM -  1 HP - Open ","motor",60]
["Motors","1200 RPM -  1 HP - Open ","motor",75]
["Motors","1200 RPM -  1 HP - Open ","motor",1]
["Motors","1200 RPM -  1 HP - Open ","motor",1.5]
["Motors","1200 RPM -  1 HP - Open ","motor",2]
["Motors","1200 RPM -  1 HP - Open ","motor",3]
["Motors","1200 RPM -  1 HP - Open ","motor",4]
["Motors","1200 RPM -  1 HP - Open ","motor",9]
["Motors","1200 RPM -  1 HP - Open ","motor",10]
["Motors","1200 RPM -  1 HP - Open ","motor",11]
["Motors","1200 RPM -  1 HP - Open ","motor",12]
["Motors","1200 RPM -  1 HP - Open ","motor",15]
["Motors","1200 RPM -  1 HP - Open ","motor",17]
["Motors","1200 RPM -  1 HP - Open ","motor",20]
["Motors","1200 RPM -  1 HP - Open ","motor",24]
["Motors","1200 RPM -  1 HP - Open ","motor",25]
["Motors","1200 RPM -  1 HP - Open ","motor",30]
["Motors","1200 RPM -  1 HP - Open ","motor",40]
["Motors","1200 RPM -  1 HP - Open ","motor",50]
["Motors","1200 RPM -  1 HP - Open ","motor",60]
["Motors","1200 RPM -  1 HP - Open ","motor",75]
[]
[]
[null,null,"Unit","Incentive"]
["HVAC",null,"kWh",0.06]
[]
[null,null,"Unit","Incentive"]
["Custom",null,"kWh",7.4999999999999997E-2]

{"sheet":"Interior Lighting","index":5,"n_rows":134,"n_cols":17,"rows_kept":134,"cut":false,"hidden":false,"merged":[[83,0,86,9],[113,0,116,9],[12,0,12,3],[14,0,14,3],[15,0,15,3],[13,0,13,3],[21,0,21,6],[17,0,17,8],[21,7,21,8],[18,0,18,3],[19,7,19,8],[19,0,19,3],[18,7,18,8],[1,0,1,2],[2,0,2,8],[0,1,0,7],[10,0,10,3],[11,0,11,3],[3,0,3,8],[9,0,9,3],[4,0,4,3],[5,0,5,3],[6,0,6,3],[7,0,7,3],[8,0,8,3]]}
[null,"NEW CONSTRUCTION INTERIOR LIGHTING"]
["Applicant: fill in gray fields"]
["IMPORTANT NOTICE: Only approved LED lighting is elegible for a rebate; fluorescent and incandescent do not qualify."]
["Lighting Power Density Incentive for Areas with 50% improvement between ASHRAE 90.1 2007 and 90.1 2016"]
["Building Type",null,null,null,"Lighting Power Density1\n(W/ft2)","Actual LPD\n(W/ft2)","Building Area\n(ft2)","Watts Reduced","Incentive Subtotal \n($0.50/Watt)2","<-- up from $0.30/Watt",null,null,2019,"2020 20% over 2007","ASHRAE 90.1 2016","Avg of 2007 and 2016","% Improvement over 2007"]
[null,null,null,null,{"$f":"IF(A6=\"\",\"\",VLOOKUP(A6,$L$6:$P$37,5,FALSE))","v":""},null,null,{"$f":"IF(E6=\"\",\"\",IF(AND(ISNUMBER(F6),E6-F6>0),(E6-F6)*G6,0))","v":""},{"$f":"IF(F6>E6,0,IF(ISNUMBER(F6),H6*0.5,0))","v":0},null,null,"Automotive",0.9,{"$f":"ROUNDDOWN(M6/1.2, 1)","v":0.7},0.71,{"$f":"ROUNDUP(AVERAGE(M6, O6),2)","v":0.81},{"$f":"+M6/P6-1","v":0.11111111111111116}]
[null,null,null,null,{"$f":"IF(A7=\"\",\"\",VLOOKUP(A7,$L$6:$P$37,5,FALSE))","v":""},null,null,{"$f":"IF(E7=\"\",\"\",IF(AND(ISNUMBER(F7),E7-F7>0),(E7-F7)*G7,0))","v":""},0,null,null,"Convention Center",1.2,{"$f":"ROUNDDOWN(M7/1.2, 1)","v":1},0.76,{"$f":"ROUNDUP(AVERAGE(M7, O7),2)","v":0.98},{"$f":"+M7/P7-1","v":0.22448979591836737}]
[null,null,null,null,"",null,null,{"$f":"IF(E8=\"\",\"\",IF(AND(ISNUMBER(F8),E8-F8>0),(E8-F8)*G8,0))","v":""},0,null,null,"Court House",1.2,1,0.9,1.05,0.14285714285714279]
[null,null,null,null,"",null,null,"",0,null,null,"Dining: Bar Lounge/Leisure",1.3,1,0.9,1.1000000000000001,0.18181818181818166]
[null,null,null,null,"",null,null,"",0,null,null,"Dining: Cafeteria/Fast Food",1.4,1.1000000000000001,0.79,1.1000000000000001,0.27272727272727249]
[null,null,null,null,"",null,null,"",0,null,null,"Dining: Family",1.6,1.3,0.78,1.19,0.34453781512605053]
[null,null,null,null,"",null,null,"",0,null,null,"Dormitory",1,0.8,0.61,0.81,0.23456790123456783]
[null,null,null,null,"",null,null,"",0,null,null,"Exercise Center",1,0.8,0.65,0.83,0.20481927710843384]
[null,null,null,null,"",null,null,"",0,null,null,"Gymnasium",1.1000000000000001,0.9,0.53,0.82000000000000006,0.34146341463414642]
[null,null,null,null,"",null,null,"",0,null,null,"Health Care",1,0.8,0.68,0.84,0.19047619047619047]
[null,null,null,null,"",null,null,"",0,null,null,"Hospital",1.2,1,0.82,1.01,0.18811881188118806]
[null,null,null,null,null,null,null,null,null,null,null,"Hotel ",1,0.8,1.05,1.03,-2.9126213592232997E-2]
["Daylighting Controls Incentive",null,null,null,null,null,null,null,null,null,null,"Library",1.3,1,0.75,1.03,0.26213592233009719]
["Daylighting Controls",null,null,null,"Unit Incentive\n$/Watt","Connected Watts (total)","# of Sensors","Incentive",null,null,null,"Manufacturing Facility",1.3,1,0.78,1.04,0.25]
["Daylighting Controls***",null,null,null,0.06,null,null,{"$f":"E20*F20","v":0},null,null,null,"Motel",1,0.8,0.9,0.95,5.2631578947368363E-2]
[null,null,null,null,null,null,null,null,null,null,null,"Motion Picture Theatre",1.2,1,0.83,1.02,0.17647058823529416]
["Total New Construction Lighting Incentives",null,null,null,null,null,null,{"$f":"SUM(I6:I16,H20)","v":0},null,null,{"$f":"H22","v":0},"Multi-Family (Non-residential meter only)",0.7,0.5,0.68,0.69,1.449275362318847E-2]
["NOTES:",null,null,null,null,null,null,null,null,null,null,"Museum",1.1000000000000001,0.9,1.06,1.08,1.8518518518518601E-2]
["1. Lighting Power Density Incentive for Areas with 50% improvement between ASHRAE 90.1 2007 and 90.1 2016",null,null,null,null,null,null,null,null,null,null,"Office",1,0.8,0.79,0.9,0.11111111111111116]
["2. Incentive = (LPD baseline - LPD actual) x area x $0.50",null,null,null,null,null,null,null,null,null,null,"Parking Garage",0.3,0.2,0.15,0.23,0.30434782608695632]
["3. A COMCheck document or PNM Interior LPD calculator with supporting calculations must accompany the final application",null,null,null,null,null,null,null,null,null,null,"Penitentiary",1,0.8,0.75,0.88,0.13636363636363646]
["4. Manufacturer's specification sheets must accompany the final application",null,null,null,null,null,null,null,null,null,null,"Performing Arts Theater",1.6,1.3,1.18,1.39,0.15107913669064765]
["4. This lighting incentive worksheet should be used for new construction or major renovation projects",null,null,null,null,null,null,null,null,null,null,"Police/Fire Station",1,0.8,0.8,0.9,0.11111111111111116]
["5. If the lighting project is for retrofit projects, please use the Retrofit Rebate application",null,null,null,null,null,null,null,null,null,null,"Post Office",1.1000000000000001,0.9,0.67,0.89,0.23595505617977541]
["6. Include any lighting layout drawings for inspection purposes",null,null,null,null,null,null,null,null,null,null,"Religious Building",1.3,1,0.94,1.1200000000000001,0.16071428571428559]
[null,null,null,null,null,null,null,null,null,null,null,"Retail",1.5,1.2,1.06,1.28,0.171875]
[null,null,null,null,null,null,null,null,null,null,null,"School/University",1.2,1,0.81,1.01,0.18811881188118806]
["New Construction Interior Lighting Specifications",null,null,null,null,null,null,null,null,null,null,"Sports Arena",1.1000000000000001,0.9,0.87,0.99,0.11111111111111116]
[null,null,null,null,null,null,null,null,null,null,null,"Town Hall",1.1000000000000001,0.9,0.8,0.95,0.15789473684210531]
[null,null,null,null,null,null,null,null,null,null,null,"Transportation",1,0.8,0.61,0.81,0.23456790123456783]
[null,null,null,null,null,null,null,null,null,null,null,"Warehouse",0.8,0.6,0.48,0.64,0.25]
[null,null,null,null,null,null,null,null,null,null,null,"Workshop",1.4,1.1000000000000001,0.9,1.1499999999999999,0.21739130434782616]
[]
[]
[]
[]
[]
[]
[]
[]
[]
[]
[]
[]
[]
[]
[]
[]
[]
[]
[]
[]
[]
[]
[]
[]
[]
[]
[]
[]
[]
[]
[]
[]
[]
[]
[]
[]
[]
[]
[]
[]
[]
[]
[]
[]
[]
[]
["The following lighting equipment and applications are excluded from the calculation of interior lighting power. However, any such lighting shall not be exempt unless it is an addition to general lighting and is controlled by an independent control device."]
[]
[]
[]
["1. Display or accent lighting that is an essential element for the function performed in galleries,"]
["museums, and monuments."]
["2. Lighting that is integral to equipment or instrumentation and is installed by its manufacturer."]
["3. Lighting specifically designed for use only during medical or dental procedures and lighting"]
["integral to medical equipment."]
["4. Lighting integral to both open and glass-enclosed refrigerator and freezer cases."]
["5. Lighting integral to food warming and food preparation equipment."]
["6. Lighting specifically designed for the life support of nonhuman life forms."]
["7. Lighting in retail display windows, provided the display area is enclosed by ceiling-height"]
["partitions."]
["8. Lighting in interior spaces that have been specifically designated as a registered interior"]
["historic landmark."]
["9. Lighting that is an integral part of advertising or directional signage."]
["10. Exit signs."]
["11. Lighting that is for sale or lighting educational demonstration systems."]
["12. Lighting for theatrical purposes, including performance, stage, and film and video production."]
["13. Lighting for television broadcasting in sporting activity areas."]
["14. Casino gaming areas."]
["15. Furniture-mounted supplemental task lighting that is controlled by automatic shutoff and"]
["complies with Section 9.4.1.3(c)."]
["16. Mirror lighting in dressing rooms and accent lighting in religious pulpit and choir areas."]
["17. Parking garage transition lighting—lighting for covered vehicle entrances and exits from"]
["buildings and parking structures—that complies with Section 9.4.1.2(a) and 9.4.1.2(c); each"]
["transition zone shall not exceed a depth of 66 ft inside the structure and a width of 50 ft."]
[]
[]
["Lighting used for the following exterior applications is exempt when equipped with a control device that complies with the requirements of Section 9.4.1.4 and is independent of the control of the nonexempt lighting:"]
[]
[]
[]
["a. Lighting that is integral to signage and installed in the signage by the manufacturer."]
["b. Lighting for athletic playing areas."]
["c. Lighting for industrial production, material handling, transportation sites, and associated"]
["storage areas."]
["d. Theme elements in theme/amusement parks."]
["e. Lighting used to highlight features of public monuments, public art displays, and registered"]
["historic landmark structures or buildings."]
["f. Lighting for water features."]
["2. Lighting used for the following exterior applications is exempt when controlled separately:"]
["a. Specialized signal, directional, and marker lighting associated with transportation."]
["b. Lighting integral to equipment or instrumentation and installed by its manufacturer."]
["c. Lighting for theatrical purposes, including performance, stage, film production, and"]
["video production."]
["d. Temporary lighting."]
["e. Lighting for hazardous locations."]
["f. Lighting for swimming pools."]
["g. Searchlights."]

{"sheet":"Exterior Lighting","index":6,"n_rows":44,"n_cols":21,"rows_kept":44,"cut":false,"hidden":false,"merged":[[1,0,1,2],[2,0,2,11],[3,0,3,11],[4,0,4,2],[0,1,0,10],[5,0,5,2],[6,0,6,2],[7,0,7,2],[14,0,14,2],[15,0,15,2],[8,0,8,2],[9,0,9,2],[10,0,10,2],[11,0,11,2],[24,0,24,10],[12,0,12,2],[13,0,13,2],[22,0,22,2],[16,0,16,2],[17,0,17,2],[18,0,18,2],[19,0,19,2],[20,0,20,2],[21,0,21,2]]}
[null,"NEW CONSTRUCTION EXTERIOR LIGHTING"]
["Applicant: fill in gray fields"]
["IMPORTANT NOTICE: Only approved LED lighting is elegible for a rebate; fluorescent and incandescent do not qualify."]
["Lighting Power Density Incentive"]
["SURFACE TYPE",null,null,"Area or Length","Allowed LPD1\n(W/ft2, ft or location)","Fixture Description","Building Area, Length or Qty","Number of Fixtures","Fixture Wattage","Total Wattage","Actual LPD (W/ft2, ft or location)","Incentive Subtotal 2\n($0.60/Watt)","<-- previously $0.08/kWh",null,null,2019,"2020 20% over 2007","ASHRAE 90.1 2016","Avg of 2007 and 2016","% Improvement over 2007"]
[null,null,null,{"$f":"_xlfn.IFNA(VLOOKUP(A6,$O$6:$U$24,7,FALSE),\"\")","v":""},{"$f":"(_xlfn.IFNA(ROUND(VLOOKUP(A6,$O$6:$U$24,5,FALSE),2),\"\"))","v":""},null,null,null,null,{"$f":"IF(I6=\"\", \" \", H6*I6)","v":" "},{"$f":"(IF(OR(F6=\"\",G6=\"\"),\"\",ROUND(J6/G6,2)))","v":""},{"$f":"IF(A6=\"\", \" \", IF(K6>E6,0,(E6-K6)*0.6*G6))","v":" "},null,null,"Uncovered Parking Lots and Drives",0.15,{"$f":"ROUNDDOWN(P6/1.2, 2)","v":0.12},0.08,{"$f":"ROUNDUP(AVERAGE(P6, R6),2)","v":0.12},{"$f":"+P6/S6-1","v":0.25},"Area"]
[null,null,null,"","",null,null,null,null," ",{"$f":"(IF(OR(F7=\"\",G7=\"\"),\"\",ROUND(J7/G7,2)))","v":""},{"$f":"IF(A7=\"\", \" \", IF(K7>E7,0,(E7-K7)*0.6*G7))","v":" "},null,null,"Walkway less than 10' Wide",1,{"$f":"ROUNDDOWN(P7/1.2, 1)","v":0.8},0.7,{"$f":"ROUNDUP(AVERAGE(P7, R7),2)","v":0.85},{"$f":"+P7/S7-1","v":0.17647058823529416},"Length"]
[null,null,null,"","",null,null,null,null," ",""," ",null,null,"Walkway 10' Wide or Greater",0.2,{"$f":"ROUNDDOWN(P8/1.2, 2)","v":0.16},0.14000000000000001,0.17,0.17647058823529416,"Area"]
[null,null,null,"","",null,null,null,null," ",""," ",null,null,"Plaza Areas",0.2,0.16,0.14000000000000001,0.17,0.17647058823529416,"Area"]
[null,null,null,"","",null,null,null,null," ",""," ",null,null,"Special Feature Areas",0.2,0.16,0.14000000000000001,0.17,0.17647058823529416,"Area"]
[null,null,null,"","",null,null,null,null," ",""," ",null,null,"Stairways",1,{"$f":"ROUNDDOWN(P11/1.2, 1)","v":0.8},0.7,0.85,0.17647058823529416,"Area"]
[null,null,null,"","",null,null,null,null," ",""," ",null,null,"Landscaping",1,{"$f":"ROUNDDOWN(P12/1.2, 1)","v":0.8},0.04,0.52,0.92307692307692291,"Area"]
[null,null,null,"","",null,null,null,null," ",""," ",null,null,"Entry - Pedestrian and vehicular",30,{"$f":"ROUNDDOWN(P13/1.2, 0)","v":25},21,25.5,0.17647058823529416,"Length"]
[null,null,null,"","",null,null,null,null," ",""," ",null,null,"Entry - Canopies and Overhangs",1.25,{"$f":"ROUNDDOWN(P14/1.2, 2)","v":1.04},0.4,0.83,0.50602409638554224,"Area"]
[null,null,null,"","",null,null,null,null," ",""," ",null,null,"Loading Docks",1.25,1.04,0.35,0.8,0.5625,"Area"]
[null,null,null,"","",null,null,null,null," ",""," ",null,null,"Outdoor Sales Open Area",0.5,0.41,0.5,0.5,0,"Area"]
[null,null,null,"","",null,null,null,null," ",""," ",null,null,"Outdoor Sales Street Frontage",20,{"$f":"ROUNDDOWN(P17/1.2, 0)","v":16},21,20.5,-2.4390243902439046E-2,"Length"]
[null,null,null,"","",null,null,null,null," ",""," ",null,null,"Building Façade - Area",0.2,0.16,0.2,0.2,0,"Area"]
[null,null,null,"","",null,null,null,null," ",""," ",null,null,"Building Façade - Length",5,{"$f":"ROUNDDOWN(P19/1.2, 0)","v":4},5,5,0,"Length"]
[null,null,null,"","",null,null,null,null," ",""," ",null,null,"Automated Teller Machines",270,{"$f":"ROUNDDOWN(P20/1.2, 0)","v":225},135,202.5,0.33333333333333326,"Location"]
[null,null,null,"","",null,null,null,null," ",""," ",null,null,"Gatehouse Inspection Stations",1.25,{"$f":"ROUNDDOWN(P21/1.2, 0)","v":1},0.5,0.88,0.42045454545454541,"Area"]
[null,null,null,"","",null,null,null,null," ",""," ",null,{"$f":"H25","v":0},"Loading for Law Enforcement",0.5,0.41,0.35,0.43,0.16279069767441867,"Area"]
[null,null,null,"","",null,null,null,null," ",""," ",null,null,"Drive Through Windows",400,{"$f":"ROUNDDOWN(P23/1.2, 0)","v":333},200,300,0.33333333333333326,"Location"]
[null,null,null,{"$f":"_xlfn.IFNA(VLOOKUP(A24,$O$6:$U$24,4,FALSE),\"\")","v":""},{"$f":"_xlfn.IFNA(VLOOKUP(A24,$O$6:$U$24,3,FALSE),\"\")","v":""},null,null,null,null,null,null,null,null,null,"Parking Near 24 Hour Retail",800,{"$f":"ROUNDDOWN(P24/1.2, 0)","v":666},400,600,0.33333333333333326,"Entry"]
["Total New Construction Lighting Incentive",null,null,null,null,null,null,null,null,null,null,{"$f":"SUM(L6:L24)","v":0}]
["NOTES:"]
["1. Lighting Power Density Incentive for Areas with 50% improvement between ASHRAE 90.1 2007 and 90.1 2016",null,null,null,null,null,null,null,null,null,null,null,null,null,"Uncovered Parking Lots and Drives","Area"]
["2. Incentive = (LPD baseline - LPD actual) x area x $0.60",null,null,null,null,null,null,null,null,null,null,null,null,null,"Walkway 10' Wide or Greater","Area"]
["3. A COMCheck document or supporting calculations must accompany the final application",null,null,null,null,null,null,null,null,null,null,null,null,null,"Plaza Areas","Area"]
["4. Manufacturer's specification sheets must accompany the final application",null,null,null,null,null,null,null,null,null,null,null,null,null,"Special Feature Areas","Area"]
["4. This lighting incentive worksheet should be used for new construction or major renovation projects",null,null,null,null,null,null,null,null,null,null,null,null,null,"Stairways","Area"]
["5. If the lighting project is for retrofit projects, please use the Retrofit Rebate application",null,null,null,null,null,null,null,null,null,null,null,null,null,"Canopies and Overhangs","Area"]
["6. Include any lighting layout drawings for inspection purposes",null,null,null,null,null,null,null,null,null,null,null,null,null,"Outdoor Sales Open Area","Area"]
[null,null,null,null,null,null,null,null,null,null,null,null,null,null,"Building Façade - Area","Area"]
[null,null,null,null,null,null,null,null,null,null,null,null,null,null,"Gatehouse Inspection Stations","Area"]
["New Construction Exterior Lighting Specifications",null,null,null,null,null,null,null,null,null,null,null,null,null,"Loading for Law Enforcement","Area"]
[null,null,null,null,null,null,null,null,null,null,null,null,null,null,"Parking Near 24 Hour Retail","Entry"]
[null,null,null,null,null,null,null,null,null,null,null,null,null,null,"Walkway less than 10' Wide","Length"]
[null,null,null,null,null,null,null,null,null,null,null,null,null,null,"Entry - Main","Length"]
[null,null,null,null,null,null,null,null,null,null,null,null,null,null,"Entry - Other","Length"]
[null,null,null,null,null,null,null,null,null,null,null,null,null,null,"Outdoor Sales Street Frontage","Length"]
[null,null,null,null,null,null,null,null,null,null,null,null,null,null,"Building Façade - Length","Length"]
[null,null,null,null,null,null,null,null,null,null,null,null,null,null,"Automated Teller Machines","Location"]
[null,null,null,null,null,null,null,null,null,null,null,null,null,null,"Drive Through Windows","Location"]

{"sheet":"HVAC","index":7,"n_rows":136,"n_cols":19,"rows_kept":136,"cut":false,"hidden":false,"merged":[[69,1,69,8],[70,1,70,8],[59,0,63,8],[64,0,64,8],[65,1,65,8],[66,1,66,8],[67,1,67,8],[68,1,68,8],[54,0,54,1],[54,4,54,5],[55,0,55,1],[55,4,55,5],[56,0,56,7],[58,0,58,6],[58,7,58,8],[49,0,49,7],[51,0,51,8],[52,0,52,1],[52,4,52,5],[53,0,53,1],[53,4,53,5],[47,0,47,1],[47,2,47,3],[47,4,47,5],[48,0,48,1],[48,2,48,3],[48,4,48,5],[42,0,42,7],[44,0,44,8],[45,0,45,1],[45,2,45,3],[45,4,45,5],[46,0,46,1],[46,2,46,3],[46,4,46,5],[39,4,39,5],[39,6,39,7],[40,4,40,5],[40,6,40,7],[41,4,41,5],[41,6,41,7],[36,4,36,5],[36,6,36,7],[37,4,37,5],[37,6,37,7],[38,4,38,5],[38,6,38,7],[33,4,33,5],[33,6,33,7],[34,4,34,5],[34,6,34,7],[35,4,35,5],[35,6,35,7],[30,16,32,16],[30,17,32,17],[31,3,31,5],[31,12,31,14],[32,3,32,5],[32,12,32,14],[29,0,32,2],[29,3,29,5],[29,11,32,11],[29,12,29,14],[30,3,30,5],[30,7,32,7],[30,8,32,8],[30,12,30,14],[27,0,27,2],[27,3,27,5],[27,8,28,8],[27,12,27,14],[27,17,28,17],[28,0,28,2],[28,3,28,5],[28,12,28,14],[25,0,25,2],[25,3,25,5],[25,12,25,14],[26,0,26,2],[26,3,26,5],[26,12,26,14],[19,16,25,16],[19,17,25,17],[19,0,21,2],[19,3,19,5],[19,7,25,7],[19,8,25,8],[19,11,21,11],[22,0,24,2],[22,3,22,5],[22,11,24,11],[22,12,22,14],[23,3,23,5],[23,12,23,14],[24,3,24,5],[24,12,24,14],[19,12,19,14],[20,3,20,5],[20,12,20,14],[21,3,21,5],[21,12,21,14],[12,16,18,16],[12,17,18,17],[13,3,14,5],[13,6,14,6],[13,12,14,14],[13,15,14,15],[15,3,16,5],[15,6,16,6],[15,12,16,14],[15,15,16,15],[17,3,18,5],[17,6,18,6],[17,12,18,14],[17,15,18,15],[8,15,9,15],[10,3,11,5],[10,6,11,6],[10,12,11,14],[10,15,11,15],[12,0,18,2],[12,3,12,5],[12,7,18,7],[12,8,18,8],[12,11,18,11],[3,0,11,2],[12,12,12,14],[0,1,0,5],[1,1,1,5],[1,7,1,8],[2,0,2,2],[2,3,2,5],[2,12,2,14],[3,16,11,16],[3,17,11,17],[4,3,5,5],[4,6,5,6],[4,12,5,14],[4,15,5,15],[6,3,7,5],[6,6,7,6],[6,12,7,14],[6,15,7,15],[3,3,3,5],[3,7,11,7],[3,8,11,8],[3,11,11,11],[3,12,3,14],[8,3,9,5],[8,6,9,6],[8,12,9,14]]}
[null,"HVAC INCENTIVES",null,null,null,null,null,null,null,null,null,"USE THIS SECTION TO REPLACE THE TABLE IN THE SPECS WORKSHEET"]
["Applicant: fill in gray fields at bottom","Click here for instructions to complete this worksheet"]
["Equipment Type",null,null,"Size Category",null,null,"Qualifying Efficiency*","Incentive \n(per ton)","Efficiency Bonus",null,null,"Equipment Type","Size Category",null,null,"Qualifying Efficiency*","Incentive \n(per ton)","Efficiency Bonus"]
["Unitary and Split Air Conditioning Systems",null,null,"< 65,000 Btu/h (5.4 tons)",null,null,"14.0 SEER and 12.0 EER",25,15,null,null,"Unitary and Split Air Conditioning Systems","< 65,000 Btu/h (5.4 tons)",null,null,"14.0 SEER and 12.0 EER",25,15]
[null,null,null,"≥ 65,000 Btu/h and \n< 135,000 Btu/h (5.4-11.25 tons)",null,null,"12.0 EER**",null,null,null,null,null,"≥ 65,000 Btu/h and \n< 135,000 Btu/h (5.4-11.25 tons)",null,null,"12.0 EER**"]
[]
[null,null,null,"≥ 135,000 Btu/h and < 240,000 Btu/h (11.25-20 tons)",null,null,"12.0 EER**",null,null,null,null,null,"≥ 135,000 Btu/h and < 240,000 Btu/h (11.25-20 tons)",null,null,"12.0 EER**"]
[]
[null,null,null,"≥ 240,000 Btu/h and < 760,000 Btu/h (20-63 Tons)",null,null,"10.8 EER**",null,null,null,null,null,"≥ 240,000 Btu/h and < 760,000 Btu/h (20-63 Tons)",null,null,"10.8 EER**"]
[]
[null,null,null,"≥ 760,000 Btu/h (> 63 tons)",null,null,"10.2 EER**",null,null,null,null,null,"≥ 760,000 Btu/h (> 63 tons)",null,null,"10.2 EER**"]
[]
["Air Source Heat Pumps",null,null,"< 65,000 Btu/h (5.4 tons)",null,null,"14 SEER and 12.0 EER and 7.7 HSPF",40,15,null,null,"Air Source Heat Pumps","< 65,000 Btu/h (5.4 tons)",null,null,"14 SEER and 12.0 EER and 7.7 HSPF",40,15]
[null,null,null,"≥ 65,000 Btu/h and \n< 135,000 Btu/h (5.4-11.25 tons)",null,null,"11.6 EER** and 3.2 COP",null,null,null,null,null,"≥ 65,000 Btu/h and \n< 135,000 Btu/h (5.4-11.25 tons)",null,null,"11.6 EER** and 3.2 COP"]
[]
[null,null,null,"≥ 135,000 Btu/h and < 240,000 Btu/h (11.25-20 tons)",null,null,"11.2 EER** and 3.1 COP",null,null,null,null,null,"≥ 135,000 Btu/h and < 240,000 Btu/h (11.25-20 tons)",null,null,"11.2 EER** and 3.1 COP"]
[]
[null,null,null,"≥ 240,000 Btu/h and < 760,000 Btu/h (20-63 Tons)",null,null,"10.0 EER** and 3.1 COP",null,null,null,null,null,"≥ 240,000 Btu/h and < 760,000 Btu/h (20-63 Tons)",null,null,"10.0 EER** and 3.1 COP"]
[]
["Chillers: Water-Cooled, Centrifugal***",null,null,"≤ 150 tons",null,null,"0.569 kW/ton-IPLV",20,20,null,null,"Chillers: Water-Cooled, Centrifugal","≤ 150 tons",null,null,"0.569 kW/ton-IPLV",20,20]
[null,null,null,">150 tons and ≤ 300 tons",null,null,"0.507 kW/ton-IPLV",null,null,null,null,null,">150 tons and ≤ 300 tons",null,null,"0.507 kW/ton-IPLV"]
[null,null,null,"> 300 tons",null,null,"0.467 kW/ton-IPLV",null,null,null,null,null,"> 300 tons",null,null,"0.467 kW/ton-IPLV"]
["Chillers: Water Cooled Scroll or Helical-Rotary***",null,null,"≤ 150 tons",null,null,"0.575 kW/ton-IPLV",null,null,null,null,"Chillers: Water Cooled Scroll or Helical-Rotary","≤ 150 tons",null,null,"0.575 kW/ton-IPLV"]
[null,null,null,">150 tons and ≤ 300 tons",null,null,"0.534 kW/ton-IPLV",null,null,null,null,null,">150 tons and ≤ 300 tons",null,null,"0.534 kW/ton-IPLV"]
[null,null,null,"> 300 tons",null,null,"0.486 kW/ton-IPLV",null,null,null,null,null,"> 300 tons",null,null,"0.486 kW/ton-IPLV"]
["Chillers: Water-Cooled Reciprocating, All",null,null,"ALL",null,null,"0.592 kW/ton-IPLV",null,null,null,null,"Chillers: Water-Cooled Reciprocating, All","ALL",null,null,"0.592 kW/ton-IPLV"]
["Chillers: Air-Cooled, All",null,null,"ALL",null,null,"0.867 kW/ton-IPLV",40,20,null,null,"Chillers: Air-Cooled, All","ALL",null,null,"0.867 kW/ton-IPLV",40,20]
["Packaged Terminal AC",null,null,"ALL",null,null,"12.5-(0.213 x Btu/h/1000) EER",50,0,null,null,"Packaged Terminal AC","ALL",null,null,"12.5-(0.213 x Btu/h/1000) EER",50,0]
["Packaged Terminal HP",null,null,"ALL",null,null,"12.3-(0.213 x Btu/h/1000) EER",100,null,null,null,"Packaged Terminal HP","ALL",null,null,"12.3-(0.213 x Btu/h/1000) EER",100]
["Variable Refrigerant Flow HP",null,null,"< 65,000 Btu/h (5.4 tons)",null,null,"15.6 SEER and 8.9 HSPF",40,20,null,null,"Variable Refrigerant Flow HP","< 65,000 Btu/h (5.4 tons)",null,null,"15.6 SEER and 8.9 HSPF",40,20]
[null,null,null,"≥ 65,000 Btu/h and \n< 135,000 Btu/h (5.4-11.25 tons)",null,null,"14.8 IEER and 4.0 COP",40,25,null,null,null,"≥ 65,000 Btu/h and \n< 135,000 Btu/h (5.4-11.25 tons)",null,null,"14.8 IEER and 4.0 COP",40,25]
[null,null,null,"≥ 135,000 Btu/h and < 240,000 Btu/h (11.25-20 tons)",null,null,"14.2 IEER and 3.2 COP",null,null,null,null,null,"≥ 135,000 Btu/h and < 240,000 Btu/h (11.25-20 tons)",null,null,"14.2 IEER and 3.2 COP"]
[null,null,null,"≥ 240,000 Btu/h (20 Tons)",null,null,"12.7 IEER and 3.7 COP",null,null,null,null,null,"≥ 240,000 Btu/h (20 Tons)",null,null,"12.7 IEER and 3.7 COP"]
["Equipment Model","Tons","Efficiency Rating","Quantity","Equipment Type",null,"Size Category",null,"Incentive"]
[null,null,null,null,null,null,null,null,{"$f":"IF(E35=\"\",\"\",IF(LEFT(E35,1)<>\"C\",B35*D35*IF(VLOOKUP(CONCATENATE(E35,G35),$K$108:$N$134,2,FALSE)>C35,0,VLOOKUP(CONCATENATE(E35,G35),$K$108:$N$134,3,FALSE)+(C35-(VLOOKUP(CONCATENATE(E35,G35),$K$108:$N$134,2,FALSE)))*(VLOOKUP(CONCATENATE(E35,G35),$K$108:$N$134,4,FALSE))),B35*D35*IF(VLOOKUP(CONCATENATE(E35,G35),$K$108:$N$134,2,FALSE)<C35,0,VLOOKUP(CONCATENATE(E35,G35),$K$108:$N$134,3,FALSE)+((VLOOKUP(CONCATENATE(E35,G35),$K$108:$N$134,2,FALSE))-C35)*(VLOOKUP(CONCATENATE(E35,G35),$K$108:$N$134,4,FALSE))/0.1)))","v":""}]
[null,null,null,null,null,null,null,null,""]
[null,null,null,null,null,null,null,null,""]
[null,null,null,null,null,null,null,null,""]
[null,null,null,null,null,null,null,null,""]
[null,null,null,null,null,null,null,null,""]
[null,null,null,null,null,null,null,null,""]
[null,null,null,null,null,null,null,null,""]
["Total HVAC Incentives",null,null,null,null,null,null,null,{"$f":"SUM(I35:I42)","v":0}]
[]
["Guest Room Energy Management System"]
["Type/ Description",null,"Incentive Unit",null,"Unit Size (tons)",null,"Quantity","Incentive/ Ton","Incentive"]
["Hotel Guest Room Occupancy Sensor ",null,"Per Ton Per Room",null,null,null,null,60,{"$f":"IF(G47*H47*E47=0,\"\",G47*H47*E47)","v":""}]
["Hotel Guest Room Occupancy Sensor ",null,"Per Ton Per Room",null,null,null,null,60,{"$f":"IF(G48*H48*E48=0,\"\",G48*H48*E48)","v":""}]
["Hotel Guest Room Occupancy Sensor ",null,"Per Ton Per Room",null,null,null,null,60,{"$f":"IF(G49*H49*E49=0,\"\",G49*H49*E49)","v":""}]
["Total GREM Incentives",null,null,null,null,null,null,null,{"$f":"IF(SUM(I47:I49)=0,\"\",SUM(I47:I49))","v":""}]
[]
["Indirect Evaporative Cooling"]
["Type/ Description",null,"Number of HMX Units","Tons/ HMX","Equivalent Tons",null,"Quantity","Incentive/ Ton","Incentive"]
[null,null,null,0.66,{"$f":"C54*D54","v":0},null,null,100,{"$f":"IF(G54*H54*E54=0,\"\",G54*H54*E54)","v":""}]
[null,null,null,0.66,{"$f":"C55*D55","v":0},null,null,100,{"$f":"IF(G55*H55*E55=0,\"\",G55*H55*E55)","v":""}]
[null,null,null,0.66,0,null,null,100,{"$f":"IF(G56*H56*E56=0,\"\",G56*H56*E56)","v":""}]
["Total Indirect Evaporative Cooling Incentives",null,null,null,null,null,null,null,{"$f":"IF(SUM(I54:I56)=0,\"\",SUM(I54:I56))","v":""}]
["HMX = Heat Mass Exchange units"]
["Total All HVAC Form Incentives",null,null,null,null,null,null,{"$f":"SUM(I43,I50,I57)","v":0}]
["* Use SEER for Unitary and Split Units less than 5.4 tons and EER for units larger than 5.4 tons; values available from CEE 2012 Tier 2; Use IEER for VRF Units; IPLV values based on ASHRAE 90.1 2010; see specifications page for complete list. Attach AHRI Rating Sheet. \n** Units with electric resistance heating must have EER values 0.2 higher than the efficiencies listed.\n*** Unit efficiency for chillers should be provided in kW per ton – IPLV where IPLV = Integrated Part Load Value; values based on ASHRAE 90.1 2010. Attach manufacturer's rating sheet for credit."]
[]
[]
[]
[]
["INSTRUCTIONS TO COMPLETE THIS WORKSHEET:"]
["Equipment Model:","Enter the equipment model as shown on the invoice; provide the specification sheet(s) that accompany the model"]
["Tons:","Enter the equipment tonnage from the AHRI or manufacturer specification sheet"]
["Efficiency Rating:","Enter the equipment efficiency rating from the AHRI or manufacturer specification sheet; for chillers, kW/ton = 12/IPLV EER"]
["Quantity:","Enter the number of units that fit this size and efficiency rating"]
["Equipment Type:","Enter the equipment type from the drop-down menu"]
["Size Category:","Enter the equipment size from the drop-down menu"]
[]
[]
[" HVAC Specifications"]
[]
[]
[]
[]
[]
[]
[]
[]
[]
[null,null,null,null,null,null,null,null,null,null,"Unitary and Split Air Conditioning Systems"]
[null,null,null,null,null,null,null,null,null,null,"Air Source Heat Pumps"]
[null,null,null,null,null,null,null,null,null,null,"Chillers: Water-Cooled: Centrifugal"]
[null,null,null,null,null,null,null,null,null,null,"Chillers: Water-Cooled: Scroll or Screw"]
[null,null,null,null,null,null,null,null,null,null,"Chillers: Water-Cooled: Reciprocating"]
[null,null,null,null,null,null,null,null,null,null,"Chillers: Air-Cooled"]
[null,null,null,null,null,null,null,null,null,null,"Packaged Terminal AC"]
[null,null,null,null,null,null,null,null,null,null,"Packaged Terminal HP"]
[null,null,null,null,null,null,null,null,null,null,"Variable Refrigerant Flow HP"]
[]
[]
[null,null,null,null,null,null,null,null,null,null,"< 65,000 Btu/h (5.4 tons)"]
[null,null,null,null,null,null,null,null,null,null,"≥ 65,000 Btu/h and < 135,000 Btu/h (5.4-11.25 tons)"]
[null,null,null,null,null,null,null,null,null,null,"≥ 135,000 Btu/h and < 240,000 Btu/h (11.25-20 tons)"]
[null,null,null,null,null,null,null,null,null,null,"≥ 240,000 Btu/h and < 760,000 Btu/h (20-63 Tons)"]
[null,null,null,null,null,null,null,null,null,null,"≥ 760,000 Btu/h (> 63 tons)"]
[null,null,null,null,null,null,null,null,null,null,"≤ 150 tons"]
[null,null,null,null,null,null,null,null,null,null,">150 tons and ≤ 300 tons"]
[null,null,null,null,null,null,null,null,null,null,"> 300 tons"]
[null,null,null,null,null,null,null,null,null,null,"ALL"]
[]
[]
[]
[]
[null,null,null,null,null,null,null,null,null,null,null,"Level Normal","Incentive","Bonus","Level 2","Level 3","Level 4","Min","Max"]
[]
[null,null,null,null,null,null,null,null,null,null,"Unitary and Split Air Conditioning Systems< 65,000 Btu/h (5.4 tons)",14,25,15,{"$f":"L110+1","v":15},{"$f":"O110+1","v":16},17,0,5.4]
[null,null,null,null,null,null,null,null,null,null,"Unitary and Split Air Conditioning Systems≥ 65,000 Btu/h and < 135,000 Btu/h (5.4-11.25 tons)",12,25,15,{"$f":"L111+1","v":13},14,15]
[null,null,null,null,null,null,null,null,null,null,"Unitary and Split Air Conditioning Systems≥ 135,000 Btu/h and < 240,000 Btu/h (11.25-20 tons)",12,25,15,{"$f":"L112+1","v":13},14,15,11.25,20]
[null,null,null,null,null,null,null,null,null,null,"Unitary and Split Air Conditioning Systems≥ 240,000 Btu/h and < 760,000 Btu/h (20-63 Tons)",10.8,25,15,{"$f":"L110+1","v":15},{"$f":"O110+1","v":16},{"$f":"P110+1","v":17},20,63]
[null,null,null,null,null,null,null,null,null,null,"Unitary and Split Air Conditioning Systems≥ 760,000 Btu/h (> 63 tons)",10.199999999999999,25,15,{"$f":"L114+1","v":11.2},12.2,13.2,63,100000]
[null,null,null,null,null,null,null,null,null,null,"Air Source Heat Pumps< 65,000 Btu/h (5.4 tons)",14,40,15,{"$f":"L115+1","v":15},16,17,0,5.4]
[null,null,null,null,null,null,null,null,null,null,"Air Source Heat Pumps≥ 65,000 Btu/h and < 135,000 Btu/h (5.4-11.25 tons)",11.6,40,15,{"$f":"L116+1","v":12.6},13.6,14.6,5.4,11.25]
[null,null,null,null,null,null,null,null,null,null,"Air Source Heat Pumps≥ 135,000 Btu/h and < 240,000 Btu/h (11.25-20 tons)",11.2,40,15,{"$f":"L117+1","v":12.2},13.2,14.2,11.25,20]
[null,null,null,null,null,null,null,null,null,null,"Air Source Heat Pumps≥ 240,000 Btu/h and < 760,000 Btu/h (20-63 Tons)",10,40,15,{"$f":"L115+1","v":15},{"$f":"O115+1","v":16},{"$f":"P115+1","v":17},20,63]
[null,null,null,null,null,null,null,null,null,null,"Air Source Heat Pumps≥ 760,000 Btu/h (> 63 tons)",10,40,15,{"$f":"L119+1","v":11},{"$f":"O119+1","v":12},13,63,100000]
[null,null,null,null,null,null,null,null,null,null,"Chillers: Water-Cooled: Centrifugal≤ 150 tons",0.56899999999999995,20,20,0.54,{"$f":"ROUNDUP(L120/0.9*0.7,2)","v":0.45},{"$f":"ROUNDUP(L120/0.9*0.6,2)","v":0.38},0,150]
[null,null,null,null,null,null,null,null,null,null,"Chillers: Water-Cooled: Centrifugal>150 tons and ≤ 300 tons",0.50700000000000001,20,20,0.48,0.4,0.34,150,300]
[null,null,null,null,null,null,null,null,null,null,"Chillers: Water-Cooled: Centrifugal> 300 tons",0.46700000000000003,20,20,0.44,0.37,0.32,300,100000]
[null,null,null,null,null,null,null,null,null,null,"Chillers: Water-Cooled: ReciprocatingALL",0.59199999999999997,20,20,0.54,0.47000000000000003,0.4,0,75]
[null,null,null,null,null,null,null,null,null,null,"Chillers: Water-Cooled: Scroll or Screw≤ 150 tons",0.57499999999999996,20,20,0.54,0.45,0.39,75,150]
[null,null,null,null,null,null,null,null,null,null,"Chillers: Water-Cooled: Scroll or Screw>150 tons and ≤ 300 tons",0.53400000000000003,20,20,0.5,0.42,0.36,150,300]
[null,null,null,null,null,null,null,null,null,null,"Chillers: Water-Cooled: Scroll or Screw> 300 tons",0.48599999999999999,20,20,0.46,0.38,0.33,300,100000]
[null,null,null,null,null,null,null,null,null,null,"Chillers: Air-CooledALL",0.86699999999999999,40,20,{"$f":"ROUND(L127/0.9*0.8,2)","v":0.77},0.68,0.57999999999999996,0,150]
[null,null,null,null,null,null,null,null,null,null,"Chillers: Air-Cooled> 150 tons",0.86699999999999999,15,20,{"$f":"ROUND(L128/0.9*0.8,2)","v":0.77},0.68,0.57999999999999996,150,100000]
[null,null,null,null,null,null,null,null,null,null,"Packaged Terminal ACALL",{"$f":"12.5-(0.213*B35*12000/1000)","v":12.5},50,0,{"$f":"L129+1","v":13.5},{"$f":"O129+1","v":14.5},15.5,0,100000]
[null,null,null,null,null,null,null,null,null,null,"Packaged Terminal HPALL",{"$f":"12.3-(0.213*B36*12000/1000)","v":12.3},100,0,13.3,14.3,15.3,0,100000]
[null,null,null,null,null,null,null,null,null,null,"Variable Refrigerant Flow HP≥ 65,000 Btu/h and < 135,000 Btu/h (5.4-11.25 tons)",14.8,40,25,15.8,16.8,17.8,5.4,11.25]
[null,null,null,null,null,null,null,null,null,null,"Variable Refrigerant Flow HP≥ 135,000 Btu/h and < 240,000 Btu/h (11.25-20 tons)",14.2,40,25,15.2,16.2,17.2,11.25,20]
[null,null,null,null,null,null,null,null,null,null,"Variable Refrigerant Flow HP≥ 240,000 Btu/h and < 760,000 Btu/h (20-63 Tons)",12.7,40,25,13.7,14.7,15.7,20,63]
[null,null,null,null,null,null,null,null,null,null,"Variable Refrigerant Flow HP< 65,000 Btu/h (5.4 tons)",15.6,40,25,16.600000000000001,17.600000000000001,18.600000000000001,63,100000]
[]
[null,null,null,null,null,null,null,null,null,null,null,null,null,null,"**used stated values for Level 2, if available.  Else was rounded up to the  10s of watts"]

{"sheet":"Food Service","index":8,"n_rows":28,"n_cols":13,"rows_kept":28,"cut":false,"hidden":false,"merged":[[2,0,4,10],[6,3,6,6],[0,1,0,8],[1,0,1,3],[0,9,0,10]]}
[null,"Food Service Equipment Incentives"]
[]
["Update: Starting 2020 Food Service equipment ONLY qualifies under the Distributor Discount Program. For details on how to participate in the program please visit our website (link below). "]
[]
[]
[]
[null,null,null,"Distributor Discount Program"]
[]
[]
[]
[]
[]
[]
[]
[]
[null,null,null,null,null,null,null,null,null,null,null,null,false]
[]
[]
[]
[]
[]
[]
[]
[]
[]
[]
[]
[null,null,null,null,null,null,null,null,null,null,null,null,false]

{"sheet":"Custom","index":9,"n_rows":62,"n_cols":12,"rows_kept":62,"cut":false,"hidden":false,"merged":[[58,0,59,9],[40,0,48,3],[40,4,40,5],[40,7,48,7],[40,8,48,9],[41,4,41,6],[42,4,42,5],[43,4,43,6],[44,4,44,5],[45,4,45,6],[46,4,46,5],[47,4,47,6],[48,4,48,5],[49,0,49,9],[50,0,50,7],[50,8,50,9],[35,4,35,6],[36,4,36,5],[37,0,37,9],[38,0,38,9],[39,0,39,3],[39,4,39,6],[39,8,39,9],[28,0,36,3],[28,4,28,5],[28,7,36,7],[28,8,36,9],[29,4,29,6],[30,4,30,5],[31,4,31,6],[32,4,32,5],[33,4,33,6],[34,4,34,5],[23,4,23,6],[24,4,24,5],[25,0,25,9],[26,0,26,9],[27,0,27,3],[27,4,27,6],[27,8,27,9],[16,0,24,3],[16,4,16,5],[16,7,24,7],[16,8,24,9],[17,4,17,6],[18,4,18,5],[19,4,19,6],[20,4,20,5],[21,4,21,6],[22,4,22,5],[11,4,11,6],[12,4,12,5],[13,0,13,9],[14,0,14,9],[15,0,15,3],[15,4,15,6],[15,8,15,9],[4,0,12,3],[4,4,4,5],[4,7,12,7],[4,8,12,9],[5,4,5,6],[6,4,6,5],[7,4,7,6],[8,4,8,5],[9,4,9,6],[10,4,10,5],[0,3,0,5],[0,8,0,9],[1,0,1,2],[2,0,2,9],[3,0,3,3],[3,4,3,6],[3,8,3,9]]}
[null,null,null,"CUSTOM INCENTIVES"]
["Applicant: fill in gray fields",null,null,"*Please attach supporting documentation as described in the specifications*"]
["Item 1"]
["Description",null,null,null,null,null,null,"$/kWh","Subtotal"]
[null,null,null,null,"Annual kWh Savings",null,null,0.08,{"$f":"IF(AND(G5>0,G11>0,G13>0),MIN(G5*H5,G11,0.5*G13),0)","v":0}]
[]
[null,null,null,null,"kW Savings"]
[]
[null,null,null,null,"Annual Operating Hours",null,null,null,null,null,null,{"$f":"IF(ISNUMBER(I5)=TRUE,I5,0)","v":0}]
[]
[null,null,null,null,"Incremental Measure Cost"]
[]
[null,null,null,null,"Total Project Cost"]
[]
["Item 2"]
["Description",null,null,null,null,null,null,"$/kWh","Subtotal"]
[null,null,null,null,"Annual kWh Savings",null,null,0.08,{"$f":"IF(AND(G17>0,G23>0,G25>0),MIN(G17*H17,G23,0.5*G25),0)","v":0}]
[]
[null,null,null,null,"kW Savings"]
[]
[null,null,null,null,"Annual Operating Hours",null,null,null,null,null,null,{"$f":"IF(ISNUMBER(I17)=TRUE,I17,0)","v":0}]
[]
[null,null,null,null,"Incremental Measure Cost"]
[]
[null,null,null,null,"Total Project Cost"]
[]
["Item 3"]
["Description",null,null,null,null,null,null,"$/kWh","Subtotal"]
[null,null,null,null,"Annual kWh Savings",null,null,0.08,{"$f":"IF(AND(G29>0,G35>0,G37>0),MIN(G29*H29,G35,0.5*G37),0)","v":0}]
[]
[null,null,null,null,"kW Savings"]
[]
[null,null,null,null,"Annual Operating Hours",null,null,null,null,null,null,{"$f":"IF(ISNUMBER(I29)=TRUE,I29,0)","v":0}]
[]
[null,null,null,null,"Incremental Measure Cost"]
[]
[null,null,null,null,"Total Project Cost"]
[]
["Item 4"]
["Description",null,null,null,null,null,null,"$/kWh","Subtotal"]
[null,null,null,null,"Annual kWh Savings",null,null,0.08,{"$f":"IF(AND(G41>0,G47>0,G49>0),MIN(G41*H41,G47,0.5*G49),0)","v":0}]
[]
[null,null,null,null,"kW Savings"]
[]
[null,null,null,null,"Annual Operating Hours",null,null,null,null,null,null,{"$f":"IF(ISNUMBER(I41)=TRUE,I41,0)","v":0}]
[]
[null,null,null,null,"Incremental Measure Cost"]
[]
[null,null,null,null,"Total Project Cost"]
[]
["Total Custom Incentives",null,null,null,null,null,null,null,{"$f":"L51","v":0},null,null,{"$f":"L9+L21+L33+L45","v":0}]
[]
["Incremental measure cost (IMC) is the difference between the cost of an energy-efficient piece of equipment and a new"]
["standard-efficiency piece of equipment. The IMC of energy-efficient equipment installed before an old piece of equipment"]
["reaches the end of its life (such as lighting equipment) generally is equal to the total cost of the energy-efficient equipment,"]
["including labor. The IMC of energy-efficient equipment installed at or near the end of life of an old piece of equipment (such as"]
["chillers, motors, air-conditioning units) generally is equal to the difference in cost between the energy-efficient equipment and"]
["the new standard-efficiency piece of equipment, not including labor."]
["The rebate will be shown as 100% of the Incremental Measure Cost or 50% of the Total Project Cost. All Custom measures subject to approval using the Utility Cost Test (UCT). Submit calculations and costs for assistance."]
[]
[]
["Custom Specifications"]

{"sheet":"NC Whole Bldg","index":10,"n_rows":59,"n_cols":12,"rows_kept":59,"cut":false,"hidden":false,"merged":[[24,4,24,5],[25,4,25,6],[26,4,26,5],[11,4,11,6],[31,0,31,3],[31,4,31,6],[13,4,13,6],[31,8,31,9],[51,4,51,6],[0,2,0,6],[27,0,27,9],[30,0,30,9],[32,4,32,5],[34,4,34,5],[18,0,26,3],[19,4,19,6],[21,4,21,6],[23,4,23,6],[22,4,22,5],[18,4,18,5],[20,4,20,5],[7,4,7,6],[12,4,12,5],[54,8,54,9],[43,0,43,3],[38,4,38,5],[43,4,43,6],[41,0,41,9],[32,0,40,3],[32,7,40,7],[39,4,39,6],[33,4,33,6],[35,4,35,6],[42,0,42,9],[37,4,37,6],[54,0,54,7],[36,4,36,5],[55,7,55,9],[40,4,40,5],[44,4,44,5],[46,4,46,5],[48,4,48,5],[49,4,49,6],[45,4,45,6],[47,4,47,6],[43,8,43,9],[32,8,40,9],[53,0,53,9],[44,0,52,3],[44,7,52,7],[44,8,52,9],[52,4,52,5],[50,4,50,5],[4,0,4,9],[5,0,5,3],[5,4,5,6],[5,8,5,9],[9,4,9,6],[1,0,1,2],[0,8,0,9],[18,7,26,7],[18,8,26,9],[6,0,14,3],[15,0,15,9],[17,0,17,3],[6,4,6,5],[8,4,8,5],[10,4,10,5],[16,0,16,9],[14,4,14,5],[17,4,17,6],[17,8,17,9],[6,7,14,7],[6,8,14,9]]}
[null,null,"NC WHOLE BUILDING INCENTIVES"]
["Applicant: fill in gray fields"]
["New Construction Whole Building Performance - 10% to 20% Savings"]
["Please attach supporting documentation as described in the specifications. Savings relative to ASHRAE 90.1 - 2007."]
["Item 1"]
["Description",null,null,null,null,null,null,"$/kWh","Subtotal"]
[null,null,null,null,"Annual kWh Savings",null,null,0.1,{"$f":"IF(AND(G7>0,G13>0,G15>0),MIN(G7*H7,G13,0.5*G15),0)","v":0}]
[]
[null,null,null,null,"kW Savings"]
[]
[null,null,null,null,"Annual Operating Hours",null,null,null,null,null,null,{"$f":"IF(ISNUMBER(I7)=TRUE,I7,0)","v":0}]
[]
[null,null,null,null,"Incremental Measure Cost"]
[]
[null,null,null,null,"Total Project Cost"]
[]
["Item 2"]
["Description",null,null,null,null,null,null,"$/kWh","Subtotal"]
[null,null,null,null,"Annual kWh Savings",null,null,0.1,{"$f":"IF(AND(G19>0,G25>0,G27>0),MIN(G19*H19,G25,0.5*G27),0)","v":0}]
[]
[null,null,null,null,"kW Savings"]
[]
[null,null,null,null,"Annual Operating Hours",null,null,null,null,null,null,{"$f":"IF(ISNUMBER(I19)=TRUE,I19,0)","v":0}]
[]
[null,null,null,null,"Incremental Measure Cost"]
[]
[null,null,null,null,"Total Project Cost"]
[]
["New Construction Whole Building Performance - Greater than 20% Savings"]
["Please attach supporting documentation as described in the specifications. Savings relative to ASHRAE 90.1 - 2007."]
["Item 1"]
["Description",null,null,null,null,null,null,"$/kWh","Subtotal"]
[null,null,null,null,"Annual kWh Savings",null,null,0.12,{"$f":"IF(AND(G33>0,G39>0,G41>0),MIN(G33*H33,G39,0.5*G41),0)","v":0}]
[]
[null,null,null,null,"kW Savings"]
[]
[null,null,null,null,"Annual Operating Hours",null,null,null,null,null,null,{"$f":"IF(ISNUMBER(I33)=TRUE,I33,0)","v":0}]
[]
[null,null,null,null,"Incremental Measure Cost"]
[]
[null,null,null,null,"Total Project Cost"]
[]
["Item 2"]
["Description",null,null,null,null,null,null,"$/kWh","Subtotal"]
[null,null,null,null,"Annual kWh Savings",null,null,0.12,{"$f":"IF(AND(G45>0,G51>0,G53>0),MIN(G45*H45,G51,0.5*G53),0)","v":0}]
[]
[null,null,null,null,"kW Savings"]
[]
[null,null,null,null,"Annual Operating Hours",null,null,null,null,null,null,{"$f":"IF(ISNUMBER(I45)=TRUE,I45,0)","v":0}]
[]
[null,null,null,null,"Incremental Measure Cost"]
[]
[null,null,null,null,"Total Project Cost"]
[]
["Total New Construction Incentives",null,null,null,null,null,null,null,{"$f":"L55","v":0},null,null,{"$f":"L11+L23+L37+L49","v":0}]
[null,null,null,null,null,null,null,{"$f":"IF(L55>300000,\"Measure Cap Reached\",\"\")","v":""}]
[]
[]
["New Construction Whole Bldg Performance Specifications"]